[Event "Polish Ekstraliga 2024"]
[Site "Walbrzych"]
[Date "2024.10.09"]
[Round "3.3"]
[White "Kuzmicz, Krystian"]
[Black "Kempinski, Robert"]
[Result "1/2-1/2"]
[ECO "B31"]
[WhiteElo "2471"]
[BlackElo "2566"]
[Annotator "TA"]
[PlyCount "65"]
[EventDate "2024.10.05"]
[EventType "team-tourn"]
[EventCountry "POL"]
[SourceTitle "playchess.com"]
[Source "ChessBase"]
[SourceQuality "1"]
[WhiteTeam "Wisznia Mala"]
[BlackTeam "Legnica"]
[TimeControl "40/5400+30:1800+30"]

{[%evp 19,65,0,0,12,9,4,5,16,32,12,10,6,2,10,14,12,18,8,60,16,21,8,20,16,37,27,31,26,41,41,41,38,42,27,37,28,29,30,30,30,30,30,30,28,29,22,28,22]} 1. e4 {[%emt 0:00:16]} c5 {[%emt 0:00:23]} 2. Nf3 {[%emt 0:00:19]} Nc6 {[%emt 0:00:58]} 3. Bb5 {[%emt 0:04:13]} g6 {[%emt 0:00:14]} 4. Bxc6 {[%emt 0:07:50]} bxc6 {[%emt 0:01:17]} 5. O-O {[%emt 0:02:55]} Bg7 {[%emt 0:00:14]} 6. c3 {[%emt 0:01:54]} Nf6 {[%emt 0:03:29]} 7. Re1 {[%emt 0:04:02]} O-O {[%emt 0:00:12]} 8. d4 {[%emt 0:02:23]} cxd4 {[%emt 0:02:27]} 9. cxd4 {[%emt 0:00:11]} d6 {[%emt 0:00:09]} 10. Nc3 {[%emt 0:03:44]} Bg4 {[%emt 0:00:15]} 11. h3 {[%emt 0:10:52]} Bxf3 {[%emt 0:00:09]} 12. Qxf3 {[%emt 0:00:05]} Nd7 {[%emt 0:00:08]} 13. Rd1 {[%emt 0:04:22] The position is equal.} Qb6 {[%emt 0:08:51]} 14. Qd3 {[%emt 0:05:20]} Qb7 {[%emt 0:00:50]} 15. b3 {[%emt 0:07:10]} c5 {[%emt 0:04:30]} 16. Be3 {[%emt 0:00:55]} Rac8 {[%emt 0:03:23]} 17. Rac1 {[%emt 0:01:35]} Rfe8 {[%emt 0:02:46]} 18. Nd5 {[%emt 0:10:38]} a6 {[%emt 0:15:53]} (18... e6 $11 19. Nc3 cxd4 20. Bxd4 Bh6) 19. dxc5 {[%emt 0:10:48]} Nxc5 {[%emt 0:01:28]} 20. Bxc5 {[%emt 0:01:05]} dxc5 {[%emt 0:00:37] Black is weak on the light squares} 21. Qf3 {[%emt 0:03:23]} Be5 {[%emt 0:04:49]} 22. Rc4 {[%emt 0:02:00]} Kg7 {[%emt 0:05:32]} 23. Rdc1 {[%emt 0:00:39]} Bb2 {[%emt 0:04:45]} 24. R1c2 {[%emt 0:00:57]} Bd4 {[%emt 0:00:07]} 25. Nf4 {[%emt 0:01:11]} a5 {[%emt 0:04:17]} 26. g3 {[%emt 0:05:03]} Red8 {[%emt 0:07:17][%cal Be8d8,Bd8d6,Bd6f6][%mdl 32]} 27. Kg2 {[%emt 0:00:27]} Rd6 {[%emt 0:03:43]} 28. Nd3 {[%emt 0:01:32][%cal Rd3c5]} Rf6 {[%emt 0:01:59]} 29. Qe2 {[%emt 0:01:05][%cal Rd3c5]} e5 {[%emt 0:02:00]} 30. Qe1 {[%emt 0:03:05]} Qb5 {[%emt 0:02:26]} 31. Qc1 {[%emt 0:01:09]} Qb7 {[%emt 0:00:52]} 32. f3 {[%emt 0:00:46]} Qb5 {[%emt 0:01:49]} 33. Qd2 {[%emt 0:02:13] Weighted Error Value: White=0.06 (flawless) /Black=0.07 (flawless) .  Mistake:       	---       	Black=1      Inaccurate:     	White=1     	---        OK:         	White=9     	Black=8} (33. Nxc5 Rxc5 34. Qf1 (34. Rxc5 $2 Bxc5 35. Qe1 Bb6 $19) 34... Qb4 35. Rxc5 Bxc5 $19) 1/2-1/2

[Event "Polish Ekstraliga 2024"]
[Site "Walbrzych"]
[Date "2024.10.09"]
[Round "3.4"]
[White "Heberla, Bartlomiej"]
[Black "Butkiewicz, Lukasz"]
[Result "0-1"]
[ECO "B57"]
[WhiteElo "2501"]
[BlackElo "2334"]
[Annotator "TA"]
[PlyCount "58"]
[EventDate "2024.10.05"]
[EventType "team-tourn"]
[EventCountry "POL"]
[SourceTitle "playchess.com"]
[Source "ChessBase"]
[SourceQuality "1"]
[WhiteTeam "Legnica"]
[BlackTeam "Wisznia Mala"]
[TimeControl "40/5400+30:1800+30"]

{[%evp 20,58,4,11,17,14,15,18,26,21,18,23,42,32,50,55,52,45,56,39,72,75,91,83,77,81,81,85,221,0,0,-154,-133,-270,-269,-354,-167,-2043,-1676,-1216,-1167]} 1. e4 {[%emt 0:00:01]} c5 {[%emt 0:00:22]} 2. Nf3 {[%emt 0:00:03]} Nc6 {[%emt 0:00:11]} 3. d4 {[%emt 0:00:05]} cxd4 {[%emt 0:00:11]} 4. Nxd4 {[%emt 0:00:03]} Nf6 {[%emt 0:00:21]} 5. Nc3 {[%emt 0:00:07]} d6 {[%emt 0:00:05]} 6. Bc4 {[%emt 0:01:27]} Qb6 {[%emt 0:01:09]} 7. Nxc6 {[%emt 0:02:36]} bxc6 {[%emt 0:00:44]} 8. O-O {[%emt 0:00:08]} e6 {[%emt 0:10:55]} 9. Qe2 {[%emt 0:02:43]} Be7 {[%emt 0:00:30]} 10. b3 {[%emt 0:06:11]} O-O {[%emt 0:08:58]} 11. Bb2 {[%emt 0:00:37]} e5 {[%emt 0:03:36]} 12. Bd3 {[%emt 0:02:42]} Be6 {[%emt 0:04:46]} 13. Na4 {[%emt 0:07:17]} Qc7 {[%emt 0:00:13] The position is equal.} 14. c4 {[%emt 0:05:06]} Nd7 {[%emt 0:00:54]} 15. Rad1 {[%emt 0:08:05]} g6 {[%emt 0:02:37]} 16. Qe3 {[%emt 0:12:41]} Rfe8 {[%emt 0:06:24]} 17. f4 {[%emt 0:02:39]} exf4 {[%emt 0:08:57]} 18. Qxf4 {[%emt 0:00:34]} Rac8 {[%emt 0:08:02]} 19. Be2 {[%emt 0:01:56]} Bf8 {[%emt 0:03:53]} 20. Rd2 {[%emt 0:17:05]} a6 {[%emt 0:10:48]} 21. Rfd1 {[%emt 0:14:22]} c5 {[%emt 0:01:27]} 22. Rxd6 {[%emt 0:04:15][%cal Oa4b6] aiming for Nb6!} Bxd6 {[%emt 0:05:04]} 23. Rxd6 {[%emt 0:00:02][%cal Oa4b6] Nb6! is the strong threat.} Bf5 {[%emt 0:00:50] [#]} 24. e5 $2 {[%emt 0:05:12]} ({Only move:} 24. Bf3 $1 $18 Re6 25. Qh6) 24... f6 $11 {[%emt 0:05:07][%cal Oc7d6]} 25. Qd2 {[%emt 0:04:05]} (25. Nc3 $11 fxe5 26. Qd2) 25... Nxe5 $17 {[%emt 0:01:45]} 26. Rxf6 {[%emt 0:00:03]} (26. Rd5 $17 {keeps fighting.}) 26... Rcd8 $19 {[%emt 0:00:26]} 27. Qf4 {[%emt 0:00:24]} Qe7 {[%emt 0:02:04]} (27... Ng4 $142 28. Rxf5 (28. Qxc7 {is a self mate.} Rd1+ 29. Bf1 Rxf1+ 30. Kxf1 Bd3+ 31. Kg1 Re1+) 28... Qxf4 29. Rxf4 Rxe2) 28. Rxa6 $2 {[%emt 0:01:18] [#]} (28. Qxe5 Qxe5 29. Bxe5 Rxe5 30. Bf3) 28... Nf3+ $1 {[%emt 0:02:32][%mdl 512]} 29. Qxf3 {[%emt 0:00:41]} Qxe2 {[%emt 0:00:05] Weighted Error Value: White=0.82/Black=0.51.  Missed win:     	White=1     	---        Mistake:       	White=3     	Black=2      Inaccurate:     	White=1     	Black=1      OK:         	White=6     	Black=4      Best:        	White=1     	Black=1} 0-1

[Event "Polish Ekstraliga 2024"]
[Site "Walbrzych"]
[Date "2024.10.09"]
[Round "3.5"]
[White "Skawinski, Arkadiusz"]
[Black "Bobras, Piotr"]
[Result "1/2-1/2"]
[ECO "B24"]
[WhiteElo "2333"]
[BlackElo "2428"]
[Annotator "RC"]
[PlyCount "54"]
[EventDate "2024.10.05"]
[EventType "team-tourn"]
[EventCountry "POL"]
[SourceTitle "playchess.com"]
[Source "ChessBase"]
[SourceQuality "1"]
[WhiteTeam "Wisznia Mala"]
[BlackTeam "Legnica"]
[TimeControl "40/5400+30:1800+30"]

1. e4 {[%emt 0:00:01]} c5 {[%emt 0:00:04]} 2. Nc3 {[%emt 0:00:03]} Nc6 {[%emt 0:00:48]} 3. Bb5 {[%emt 0:00:04]} Nd4 {[%emt 0:00:52]} 4. Nf3 {[%emt 0:00:04]} a6 {[%emt 0:10:52]} 5. Bd3 {[%emt 0:00:03]} g6 {[%emt 0:03:00]} 6. Nxd4 {[%emt 0:08:49]} cxd4 {[%emt 0:00:13]} 7. Ne2 {[%emt 0:00:04]} Bg7 {[%emt 0:00:57]} 8. c3 {[%emt 0:01:10]} dxc3 {[%emt 0:02:08]} 9. dxc3 {[%emt 0:00:51]} d6 {[%emt 0:00:43]} 10. Be3 {[%emt 0:05:53]} Nf6 {[%emt 0:00:24]} 11. h3 {[%emt 0:02:32]} O-O {[%emt 0:01:22]} 12. O-O {[%emt 0:00:04]} b6 {[%emt 0:09:35]} 13. a4 {[%emt 0:12:09]} Bb7 {[%emt 0:00:46]} 14. f3 {[%emt 0:00:08]} Nd7 {[%emt 0:06:26]} 15. Bc4 {[%emt 0:06:45]} Qc7 {[%emt 0:10:48]} 16. Ba2 {[%emt 0:09:41]} e6 {[%emt 0:04:46]} 17. Bd4 {[%emt 0:13:26]} Bh6 {[%emt 0:07:24]} 18. Qe1 {[%emt 0:01:51]} e5 {[%emt 0:03:33]} 19. Qh4 {[%emt 0:07:53]} Kg7 {[%emt 0:02:11]} 20. Bf2 {[%emt 0:00:03]} Nc5 {[%emt 0:03:18]} 21. Bb1 {[%emt 0:09:06]} Nb3 {[%emt 0:05:49]} 22. Ra3 {[%emt 0:00:38]} Nd2 {[%emt 0:04:00]} 23. Re1 {[%emt 0:00:28]} Nxb1 {[%emt 0:05:31]} 24. Rxb1 {[%emt 0:00:04]} Qc4 {[%emt 0:00:14]} 25. Qe7 {[%emt 0:03:19]} Bxe4 {[%emt 0:08:19]} 26. fxe4 {[%emt 0:01:13]} Qxe2 {[%emt 0:01:03]} 27. Qxd6 {[%emt 0:00:25]} Be3 {[%emt 0:04:30]} 1/2-1/2

[Event "Polish Ekstraliga 2024"]
[Site "Walbrzych"]
[Date "2024.10.09"]
[Round "3.6"]
[White "Sliwicka, Alicja"]
[Black "Bartel, Marta"]
[Result "1-0"]
[ECO "C41"]
[WhiteElo "2371"]
[BlackElo "2214"]
[Annotator "RC"]
[PlyCount "113"]
[EventDate "2024.10.05"]
[EventType "team-tourn"]
[EventCountry "POL"]
[SourceTitle "playchess.com"]
[Source "ChessBase"]
[SourceQuality "1"]
[WhiteTeam "Legnica"]
[BlackTeam "Wisznia Mala"]
[TimeControl "40/5400+30:1800+30"]

1. e4 {[%emt 0:00:03]} d6 {[%emt 0:00:17]} 2. d4 {[%emt 0:00:07]} Nf6 {[%emt 0:00:14]} 3. Nc3 {[%emt 0:00:23]} e5 {[%emt 0:00:15]} 4. Nf3 {[%emt 0:00:59]} Nbd7 {[%emt 0:00:08]} 5. Bc4 {[%emt 0:00:31]} Be7 {[%emt 0:00:11]} 6. O-O {[%emt 0:00:19]} O-O {[%emt 0:00:05]} 7. a4 {[%emt 0:00:57]} a5 {[%emt 0:00:24]} 8. Re1 {[%emt 0:00:27]} c6 {[%emt 0:00:06]} 9. Ba2 {[%emt 0:00:33]} exd4 {[%emt 0:00:16]} 10. Nxd4 {[%emt 0:00:20]} Nc5 {[%emt 0:00:05]} 11. Bf4 {[%emt 0:07:09]} Bg4 {[%emt 0:00:20]} 12. Qd2 {[%emt 0:04:16]} Be6 {[%emt 0:00:51]} 13. h3 {[%emt 0:21:56]} Kh8 {[%emt 0:08:03]} 14. Bh2 {[%emt 0:10:50]} Re8 {[%emt 0:09:24]} 15. Bxe6 {[%emt 0:06:25]} fxe6 {[%emt 0:04:18]} 16. e5 {[%emt 0:04:40]} dxe5 {[%emt 0:14:53]} 17. Bxe5 {[%emt 0:00:08]} Nfd7 {[%emt 0:01:56]} 18. Bg3 {[%emt 0:01:20]} Bg5 {[%emt 0:02:09]} 19. Qe2 {[%emt 0:00:48]} Qf6 {[%emt 0:09:07]} 20. Nf3 {[%emt 0:05:50]} Bf4 {[%emt 0:03:38]} 21. Bh4 {[%emt 0:00:06]} Qg6 {[%emt 0:01:59]} 22. Qc4 {[%emt 0:01:04]} Bc7 {[%emt 0:04:26]} 23. Ne4 {[%emt 0:03:35]} Nxe4 {[%emt 0:07:54]} 24. Rxe4 {[%emt 0:00:20]} Nb6 {[%emt 0:00:32]} 25. Qe2 {[%emt 0:00:21]} Nd5 {[%emt 0:00:19]} 26. Bg5 {[%emt 0:01:48]} e5 {[%emt 0:12:59]} 27. Re1 {[%emt 0:02:26]} Nf6 {[%emt 0:03:55]} 28. Bxf6 {[%emt 0:00:51]} gxf6 {[%emt 0:00:08]} 29. Nh4 {[%emt 0:00:23]} Qf7 {[%emt 0:02:39]} 30. Nf5 {[%emt 0:00:18]} Rad8 {[%emt 0:01:29]} 31. Qe3 {[%emt 0:02:59]} Qh5 {[%emt 0:01:31]} 32. Ng3 {[%emt 0:01:18]} Qf7 {[%emt 0:00:33]} 33. Nf5 {[%emt 0:07:07]} Qh5 {[%emt 0:00:15]} 34. g4 {[%emt 0:01:42]} Qf7 {[%emt 0:01:18]} 35. Kg2 {[%emt 0:01:27]} Rf8 {[%emt 0:03:43]} 36. Qa7 {[%emt 0:07:49]} b5 {[%emt 0:02:29]} 37. axb5 {[%emt 0:01:13]} cxb5 {[%emt 0:00:03]} 38. R1e3 {[%emt 0:02:21]} b4 {[%emt 0:02:30]} 39. b3 {[%emt 0:00:16]} Rd7 {[%emt 0:01:54]} 40. Qb7 {[%emt 0:00:00]} Rb8 {[%emt 0:00:00]} 41. Qa6 {[%emt 0:04:38]} Bb6 {[%emt 0:05:43]} 42. Rf3 {[%emt 0:06:36]} Rd2 {[%emt 0:12:52]} 43. Qc4 {[%emt 0:04:03]} Qd7 {[%emt 0:03:06]} 44. Ng3 {[%emt 0:03:23]} Rc8 {[%emt 0:05:48]} 45. Qa6 {[%emt 0:00:05]} Rc6 {[%emt 0:00:38]} 46. Rc4 {[%emt 0:06:38]} Rxc4 {[%emt 0:04:54]} 47. Qxc4 {[%emt 0:00:05]} Rd4 {[%emt 0:01:07]} 48. Qe2 {[%emt 0:01:25]} Qc6 {[%emt 0:01:05]} 49. Nh5 {[%emt 0:02:20]} Bd8 {[%emt 0:01:09]} 50. Qe3 {[%emt 0:00:52]} Qe8 {[%emt 0:01:19]} 51. Qh6 {[%emt 0:01:49]} Rd7 {[%emt 0:00:25]} 52. Nxf6 {[%emt 0:01:14]} Bxf6 {[%emt 0:00:06]} 53. Qxf6+ {[%emt 0:00:13]} Kg8 {[%emt 0:00:03]} 54. Rf5 {[%emt 0:00:31]} Qa8+ {[%emt 0:00:59]} 55. Kh2 {[%emt 0:00:16]} Rg7 {[%emt 0:00:11]} 56. Qe6+ {[%emt 0:00:35]} Kh8 {[%emt 0:00:06]} 57. Qxe5 {[%emt 0:00:27]} 1-0

[Event "Polish Ekstraliga 2024"]
[Site "Walbrzych"]
[Date "2024.10.09"]
[Round "3.7"]
[White "Harikrishna, Pentala"]
[Black "Svane, Rasmus"]
[Result "1-0"]
[ECO "C55"]
[WhiteElo "2688"]
[BlackElo "2629"]
[Annotator "TA"]
[PlyCount "103"]
[EventDate "2024.10.05"]
[EventType "team-tourn"]
[EventCountry "POL"]
[SourceTitle "playchess.com"]
[Source "ChessBase"]
[SourceQuality "1"]
[WhiteTeam "Polonia Wroclaw"]
[BlackTeam "Gliwice"]
[TimeControl "40/5400+30:1800+30"]

{[%evp 23,103,56,48,44,54,47,55,45,41,41,42,30,62,54,63,52,56,45,45,41,45,47,51,45,81,81,94,91,119,118,118,135,129,132,239,224,250,249,238,247,341,312,331,342,341,335,336,298,285,319,325,327,320,312,331,313,310,320,364,361,359,343,366,354,416,431,471,474,512,509,572,568,515,550,654,658,672,634,1727,1731,1529,747]} 1. e4 {[%emt 0:00:10]} e5 {[%emt 0:00:21]} 2. Nf3 {[%emt 0:00:09]} Nc6 {[%emt 0:00:04]} 3. Bc4 {[%emt 0:00:14]} Nf6 {[%emt 0:00:07]} 4. d3 {[%emt 0:00:27]} Be7 {[%emt 0:00:06]} 5. O-O {[%emt 0:01:26]} O-O {[%emt 0:00:07]} 6. Re1 {[%emt 0:01:33]} d6 {[%emt 0:00:19]} 7. a3 {[%emt 0:01:28]} Be6 {[%emt 0:04:23] C55: Two Knights: 4 d3, 4 d4 exd4 5 e5 and Max Lange Attack.} 8. Nc3 {[%emt 0:01:26]} h6 {[%emt 0:16:15]} 9. Nd5 {[%emt 0:02:09]} Qd7 {[%emt 0:16:51]} 10. c3 {[%emt 0:09:27]} Bd8 $146 {[%emt 0:03:07]} ({Predecessor:} 10... Rae8 11. d4 Bg4 12. Ne3 Bxf3 13. Qxf3 g6 14. Nd5 Kg7 15. Nxf6 Bxf6 16. Bxh6+ Kxh6 17. Qxf6 {1-0 Nepomniachtchi,I (2729)-Wang,H (2709) Wch Rapid Riadh 2017 (15)}) 11. Ba2 {[%emt 0:08:32]} Bxd5 {[%emt 0:08:37]} 12. exd5 {[%emt 0:00:09]} Ne7 {[%emt 0:00:07]} 13. d4 {[%emt 0:00:42]} e4 {[%emt 0:08:49]} 14. Nd2 {[%emt 0:00:33]} Nexd5 {[%emt 0:02:39]} ({Much worse is} 14... Qf5 15. Bb1 $16) 15. Nxe4 {[%emt 0:00:27]} Re8 {[%emt 0:05:39]} 16. Qd3 {[%emt 0:15:53]} c6 {[%emt 0:02:50]} 17. f3 {[%emt 0:00:28]} Be7 {[%emt 0:08:47]} 18. Bd2 {[%emt 0:02:46]} Bf8 {[%emt 0:06:14]} 19. Re2 {[%emt 0:12:31]} Nh5 {[%emt 0:02:33]} 20. g3 {[%emt 0:00:57]} Ndf6 {[%emt 0:02:37]} 21. Rae1 {[%emt 0:02:13]} d5 {[%emt 0:00:41]} 22. Nf2 {[%emt 0:04:00]} Rxe2 {[%emt 0:02:29]} 23. Rxe2 {[%emt 0:00:40]} Qc7 {[%emt 0:01:43]} 24. Bb1 {[%emt 0:05:20]} g6 {[%emt 0:00:05]} 25. Kg2 {[%emt 0:01:51]} (25. Kf1 {simplifies} b6 26. Bc1 Rd8 27. Kg2) 25... Kh7 {[%emt 0:01:16]} 26. Ng4 {[%emt 0:06:17]} Nxg4 {[%emt 0:00:05]} 27. fxg4 {[%emt 0:00:06]} Nf6 {[%emt 0:00:20] [#]} 28. Qf3 $1 {[%emt 0:00:46]} Re8 {[%emt 0:01:27] [#]} (28... Ne4 $16 {was necessary.}) 29. Bxg6+ $1 $18 {[%emt 0:01:13]} Kg8 {[%emt 0:04:36]} (29... Kxg6 $2 {is the wrong capture.} 30. Qf5+ Kg7 31. Bxh6+ Kg8 32. Qg5+ Kh7 33. Rxe8 Nxe8 34. Bxf8 $18) 30. Rxe8 {[%emt 0:00:54]} Nxe8 {[%emt 0:00:04]} 31. Bd3 {[%emt 0:00:34]} Qe7 {[%emt 0:01:19]} 32. Qf5 {[%emt 0:00:48]} Nf6 {[%emt 0:00:48]} 33. g5 {[%emt 0:03:28]} hxg5 {[%emt 0:00:09]} 34. Bxg5 {[%emt 0:00:11]} Bg7 {[%emt 0:00:05]} 35. Qc8+ {[%emt 0:02:03]} Bf8 {[%emt 0:01:25]} 36. h4 {[%emt 0:01:52]} Qd7 {[%emt 0:00:48]} 37. Qxd7 {[%emt 0:04:47]} Nxd7 {[%emt 0:00:04]} 38. a4 {[%emt 0:00:47]} Nb6 {[%emt 0:00:24]} 39. b3 {[%emt 0:00:49]} Nc8 {[%emt 0:00:03]} 40. Kf3 {[%emt 0:00:00]} Nd6 {[%emt 0:00:00]} 41. g4 {[%emt 0:06:46]} Ne8 {[%emt 0:02:02]} 42. Bf4 {[%emt 0:03:38]} f6 {[%emt 0:00:38]} 43. Bf5 {[%emt 0:03:56]} Bd6 {[%emt 0:01:25]} 44. Bc1 {[%emt 0:03:06]} Be7 {[%emt 0:00:45]} 45. c4 {[%emt 0:01:12]} Kf7 {[%emt 0:02:07]} 46. c5 {[%emt 0:02:00]} Ng7 {[%emt 0:00:16]} 47. Bd7 {[%emt 0:01:20]} Ne6 {[%emt 0:00:39]} 48. Be3 {[%emt 0:00:16]} Bf8 {[%emt 0:02:04]} 49. b4 {[%emt 0:01:28]} Ke7 {[%emt 0:00:11]} 50. Bc8 {[%emt 0:00:05]} b6 {[%emt 0:01:45]} 51. cxb6 {[%emt 0:01:53]} axb6 {[%emt 0:00:05]} 52. a5 {[%emt 0:00:09]} (52. b5 cxb5 53. axb5 Nc7 $18) (52. Bxe6 $142 Kxe6 53. a5 bxa5 54. bxa5) 1-0

[Event "Polish Ekstraliga 2024"]
[Site "Walbrzych"]
[Date "2024.10.09"]
[Round "3.8"]
[White "Tomczak, Jacek"]
[Black "Grandelius, Nils"]
[Result "1/2-1/2"]
[ECO "B22"]
[WhiteElo "2584"]
[BlackElo "2650"]
[Annotator "TA"]
[PlyCount "44"]
[EventDate "2024.10.05"]
[EventType "team-tourn"]
[EventCountry "POL"]
[SourceTitle "playchess.com"]
[Source "ChessBase"]
[SourceQuality "1"]
[WhiteTeam "Gliwice"]
[BlackTeam "Polonia Wroclaw"]
[TimeControl "40/5400+30:1800+30"]

{[%evp 9,44,2,10,12,13,10,11,4,0,0,7,7,25,0,0,0,29,31,26,25,16,26,17,0,0,0,0,0,0,0,0,0,0,0,0,0,0]} 1. e4 {[%emt 0:00:03]} c5 {[%emt 0:00:36]} 2. c3 {[%emt 0:00:10]} Nf6 {[%emt 0:04:22]} 3. e5 {[%emt 0:00:47]} Nd5 {[%emt 0:00:04]} 4. Bc4 {[%emt 0:00:09]} e6 {[%emt 0:01:01]} 5. d4 {[%emt 0:00:06]} Nc6 {[%emt 0:03:20]} 6. Nf3 {[%emt 0:00:33]} d6 {[%emt 0:00:09]} 7. O-O {[%emt 0:01:11]} Be7 {[%emt 0:00:16]} 8. Bd3 {[%emt 0:00:47]} O-O {[%emt 0:11:16]} 9. a3 {[%emt 0:00:22]} cxd4 {[%emt 0:03:52]} 10. cxd4 {[%emt 0:05:09]} Bd7 {[%emt 0:03:06]} 11. exd6 {[%emt 0:10:05]} Bxd6 {[%emt 0:00:42]} 12. Nc3 {[%emt 0:00:12]} h6 {[%emt 0:32:02]} 13. Bc2 {[%emt 0:15:27]} Nce7 {[%emt 0:00:51]} 14. Qd3 {[%emt 0:00:41]} Ng6 {[%emt 0:00:08]} 15. Nxd5 {[%emt 0:30:01]} exd5 {[%emt 0:00:06]} 16. Ne5 {[%emt 0:00:06] The position is equal.} Bxe5 {[%emt 0:04:32]} 17. dxe5 {[%emt 0:01:58]} Rc8 {[%emt 0:00:41]} 18. Be3 {[%emt 0:02:18]} a6 {[%emt 0:01:31] [#] Hoping for ...Bb5.} 19. Rfd1 {[%emt 0:05:27]} Bb5 {[%emt 0:05:56]} 20. Qf5 {[%emt 0:00:25] Threatens to win with e6.} (20. Qxd5 $2 {perishes.} Qxd5 (20... Rxc2 $2 21. Qxd8 Rxd8 22. Rxd8+ $18) 21. Rxd5 Rxc2 $19) 20... Bd7 {[%emt 0:00:23]} 21. Qd3 {[%emt 0:00:20]} (21. Rxd5 Bxf5 22. Rxd8 Rxc2 $19) 21... Bb5 {[%emt 0:00:55]} 22. Qf5 {[%emt 0:01:55] e6 is the strong threat.} (22. Qxd5 $2 {loses.} Qxd5 (22... Rxc2 $2 23. Qxd8 Rxd8 24. Rxd8+ $18) 23. Rxd5 Rxc2 $19) 22... Bd7 {[%emt 0:05:52] An uneventful encounter.   Weighted Error Value: White=0.03 (flawless) /Black=0.03 (flawless) .  Inaccurate:     	---       	Black=1      OK:         	White=9     	Black=6      Best:        	---       	Black=4} 1/2-1/2

[Event "Polish Ekstraliga 2024"]
[Site "Walbrzych"]
[Date "2024.10.09"]
[Round "3.9"]
[White "Bartel, Mateusz"]
[Black "Laurusas, Tomas"]
[Result "1/2-1/2"]
[ECO "C42"]
[WhiteElo "2608"]
[BlackElo "2573"]
[Annotator "TA"]
[PlyCount "91"]
[EventDate "2024.10.05"]
[EventType "team-tourn"]
[EventCountry "POL"]
[SourceTitle "playchess.com"]
[Source "ChessBase"]
[SourceQuality "1"]
[WhiteTeam "Polonia Wroclaw"]
[BlackTeam "Gliwice"]
[TimeControl "40/5400+30:1800+30"]

{[%evp 9,91,14,12,9,10,5,16,12,10,3,24,18,17,18,29,35,36,31,29,25,29,30,43,38,51,14,18,2,52,37,66,47,67,19,27,28,17,0,8,12,33,38,45,9,11,8,15,15,12,9,22,22,22,19,20,16,31,0,0,-20,-26,-33,0,0,10,0,0,3,31,0,0,0,0,0,0,0,0,0,0,0,0,0,0,0]} 1. e4 {[%emt 0:00:14]} e5 {[%emt 0:00:05]} 2. Nf3 {[%emt 0:00:06]} Nf6 {[%emt 0:00:07]} 3. Nxe5 {[%emt 0:00:05]} d6 {[%emt 0:00:07]} 4. Nd3 {[%emt 0:00:05]} Nxe4 {[%emt 0:00:14]} 5. Nf4 {[%emt 0:00:03]} Be7 {[%emt 0:10:01]} 6. d4 {[%emt 0:04:01]} d5 {[%emt 0:04:50]} 7. Bd3 {[%emt 0:00:18]} Nf6 {[%emt 0:01:30]} 8. O-O {[%emt 0:02:01]} O-O {[%emt 0:00:19]} 9. h3 {[%emt 0:00:26]} Nc6 {[%emt 0:09:15]} 10. c3 {[%emt 0:01:38]} Bd6 {[%emt 0:00:07]} 11. Nh5 {[%emt 0:01:38]} Nxh5 {[%emt 0:04:13]} 12. Qxh5 {[%emt 0:00:03][%csl Gd3][%cal Rh5h7] [#]} g6 {[%emt 0:02:10]} 13. Qf3 {[%emt 0:00:55]} (13. Qxd5 $2 Bh2+ 14. Kxh2 Qxd5 $19) 13... Re8 {[%emt 0:04:36]} 14. Na3 {[%emt 0:00:45][%cal Bb1a3,Ba3c2,Bc2e3][%mdl 32]} (14. Qxd5 $2 Bh2+ 15. Kxh2 Qxd5 $19) 14... a6 {[%emt 0:01:18] Prevents Nb5.} 15. Nc2 {[%emt 0:00:27]} (15. Qxd5 $2 Bh2+ 16. Kxh2 Qxd5 $19) 15... Be6 {[%emt 0:05:59]} 16. Ne3 {[%emt 0:07:47]} h5 {[%emt 0:09:19]} 17. Bd2 {[%emt 0:00:06][%cal Of1e1]} (17. Nxd5 Bxd5 18. Qd1 (18. Qxd5 $2 Bh2+ 19. Kxh2 Qxd5 $19) 18... Qf6 $19) (17. Re1 {simplifies} Kg7 18. Nxd5 Bxd5 19. Rxe8 Bxf3 20. Rxd8 Nxd8 21. gxf3 Ne6 22. Be4) 17... Kg7 {[%emt 0:14:19]} 18. Rae1 {[%emt 0:05:23]} (18. Nxd5 $2 {is the wrong capture.} Bxd5 19. Qd1 (19. Qxd5 $2 Bh2+ 20. Kxh2 Qxd5 $19) 19... Qh4 $19) 18... Qf6 {[%emt 0:06:14]} (18... Ne7 $11) 19. Qd1 $14 {[%emt 0:07:44][%cal Of2f4]} (19. Nxd5 $2 {loses.} Qxf3 20. gxf3 Bxd5 $19) 19... Bf4 {[%emt 0:04:57]} 20. g3 {[%emt 0:17:50]} Bd6 {[%emt 0:03:29][%cal Of6d8]} 21. Kg2 {[%emt 0:03:20]} (21. f4 $14 Bxh3 22. Nxd5 Rxe1 23. Rxe1) 21... Ne7 $11 {[%emt 0:00:43]} 22. Qc1 {[%emt 0:08:04]} Kg8 {[%emt 0:06:37]} 23. h4 {[%emt 0:03:28]} c6 {[%emt 0:01:01]} 24. Nc2 {[%emt 0:00:07]} Nf5 {[%emt 0:01:58][%cal Of5h4] [#] And now ...Nxh4+! would win.} (24... Bg4 {keeps more tension.} 25. f3 Bf5 26. Bg5 Qg7) 25. Bg5 {[%emt 0:00:07]} Qg7 {[%emt 0:00:21]} 26. Bf4 {[%emt 0:00:02]} Qf8 {[%emt 0:02:47]} 27. Re2 {[%emt 0:05:26]} Bd7 {[%emt 0:02:51]} 28. Rfe1 {[%emt 0:00:46][%cal Bf1e1,Be1e2,Be2e5][%mdl 32]} Rxe2 {[%emt 0:03:13]} 29. Rxe2 {[%emt 0:00:03]} Bxf4 {[%emt 0:00:30]} 30. Qxf4 {[%emt 0:00:05]} Qd6 {[%emt 0:00:18] aiming for ...Qxf4.} 31. Re5 {[%emt 0:04:26]} Ng7 {[%emt 0:00:01]} 32. Qg5 {[%emt 0:02:29] Black is weak on the dark squares} Re8 {[%emt 0:01:47]} 33. f4 {[%emt 0:02:33]} Qf8 {[%emt 0:00:52]} 34. Rxe8 {[%emt 0:04:49]} Qxe8 {[%emt 0:00:16]} 35. Qe5 {[%emt 0:00:17]} Qxe5 {[%emt 0:00:26]} 36. fxe5 {[%emt 0:00:08]} Bf5 {[%emt 0:00:47]} 37. Bxf5 {[%emt 0:02:52]} Nxf5 {[%emt 0:00:01][%mdl 4096] Endgame. KN-KN} 38. Kf3 {[%emt 0:00:06]} Kf8 {[%emt 0:01:10]} 39. Ne3 {[%emt 0:01:17]} Nxe3 {[%emt 0:00:33] The position is equal.} 40. Kxe3 {[%emt 0:00:00] KP-KP} f6 {[%emt 0:00:00]} 41. Kf4 {[%emt 0:04:58]} (41. exf6 $5 Kf7 $8 42. Kf4 Kxf6 43. b4 $11) 41... Kf7 {[%emt 0:01:15]} 42. b4 {[%emt 0:03:51]} Ke6 {[%emt 0:02:34] ...fxe5+ is the strong threat.} 43. exf6 {[%emt 0:01:23]} Kxf6 {[%emt 0:00:08]} 44. g4 {[%emt 0:00:08]} hxg4 {[%emt 0:01:53]} 45. Kxg4 {[%emt 0:00:14]} Kf7 {[%emt 0:01:29]} 46. Kg5 {[%emt 0:03:38] Weighted Error Value: White=0.08 (flawless) /Black=0.08 (flawless) .  Mistake:       	White=1     	Black=1      Inaccurate:     	White=4     	Black=3      OK:         	White=18    	Black=20} 1/2-1/2